Cogmind - Beta 15 @@@ ROGUE MODE // 2025.09.24 @ 09:39:16 Player: shapeshifter Result: Destroyed by H-55 Commando with Assault Rifle Performance ------------- Evolutions (3) 1500 Regions Visited (6) 1200 Robots Destroyed (212) 1060 Value Destroyed (7762) 7762 Prototype IDs (36) 720 Alien Tech Used (0) 0 Bonus (3831) 3831 TOTAL SCORE: 16073 Bonus ------- Triggered High Security 500 High Alert Combat Kills 3031 Aligned with FarCom 300 Cogmind --------- Core Integrity 0/700 Matter 149/300 Energy 9/1600 System Corruption 6% Temperature Cool (0) Movement Flying (91) Ox1 Location -7/Factory Parts ------- > --- POWER (1) -------- (None) > --- PROPULSION (4) --- Improved Cesium-ion Thruster Improved Cesium-ion Thruster Improved Cesium-ion Thruster Cooled VTOL Module > --- UTILITY (5) ------ Large Storage Unit Superbattery > --- WEAPON (3) ------- (None) > --- INVENTORY (15) --- Light Angular Momentum Engine Force Booster Field Lobotomy Kit (5) Chainsword Great Axe Great Axe Peak State ------------ > --- POWER ------------ Enhanced Nuclear Core > --- PROPULSION ------- Medium Treads Medium Treads Medium Treads Medium Treads > --- UTILITY ---------- Coolant Injector Huge Storage Unit Superbattery Improved Light Armor Plating Improved Shield Generator > --- WEAPON ----------- AWS/Autocannon > --- INVENTORY -------- Light Angular Momentum Engine Medium Treads Improved Cesium-ion Thruster Improved Cesium-ion Thruster Improved Cesium-ion Thruster Cooled VTOL Module Large Storage Unit High-capacity Matter Pod High-capacity Matter Pod Force Booster Force Booster Improved Propulsion Shielding Improved Shield Generator Remote Force Field Mini Assault Cannon Missile Launcher Field Lobotomy Kit Chainsword Great Axe Great Axe [Rating: 81] Favorites ----------- Power Enhanced Nuclear Core Engine Ion Engine Power Core Enhanced Nuclear Core Propulsion Medium Treads Treads Medium Treads Leg Improved Titanium Leg Wheel Wheel Hover Unit Backup Propulsion I Flight Unit Flight Unit Utility Improved Cooling System Device Improved Cooling System Storage Huge Storage Unit Hackware Hacking Suite Protection Improved Medium Armor Plating Weapon Advanced Beam Cannon Energy Gun Improved Medium Laser Energy Cannon Advanced Beam Cannon Ballistic Gun Heavy Assault Rifle Ballistic Cannon Mini Assault Cannon Launcher Precision Grenade Launcher Special Weapon Plasma Cutter Slashing Weapon Great Axe Build | -11 -10 -10 -10 -9 -8 -7 ------- Run | Yrd Mat Min Exi Min Mat Fac Slots Evolved 6 | . . . . . 4 2 Power . | . . . . . . . Propulsion 2 | . . . . . 1 1 Utility 3 | . . . . . 2 1 Weapon 1 | . . . . . 1 . Parts Attached 125 | 7 6 5 3 4 45 55 Power 12 | 1 . 1 1 . 6 3 Engine 8 | 1 . 1 . . 5 1 Core 4 | . . . 1 . 1 2 Reactor . | . . . . . . . Propulsion 39 | 2 . 2 . 2 13 20 Treads 16 | 2 . . . . 3 11 Leg 10 | . . . . . 6 4 Wheel 6 | . . 2 . . 4 . Hover 1 | . . . . . . 1 Flight 6 | . . . . 2 . 4 Utility 43 | 2 2 . 2 . 13 24 Device 25 | 1 . . 1 . 10 13 Storage 8 | 1 2 . 1 . 2 2 Processor . | . . . . . . . Hackware 1 | . . . . . 1 . Protection 9 | . . . . . . 9 Artifact . | . . . . . . . Weapon 31 | 2 4 2 . 2 13 8 Energy Gun 10 | 1 1 . . 2 6 . Energy Cannon 3 | . . . . . 3 . Ballistic Gun 8 | 1 3 2 . . 2 . Ballistic Cannon 4 | . . . . . . 4 Launcher 4 | . . . . . 1 3 Special Weapon 1 | . . . . . 1 . Impact Weapon . | . . . . . . . Slashing Weapon 1 | . . . . . . 1 Piercing Weapon . | . . . . . . . Special Melee Weapon . | . . . . . . . Unidentified Prototypes 12 | . 1 . . . 5 6 Corrupted Parts 1 | . . . . . 1 . System Corruption 2 | . . . . . 2 . Parts Lost 43 | . . 2 . 2 18 21 Power 5 | . . . . . 3 2 Propulsion 15 | . . 1 . 2 5 7 Utility 14 | . . 1 . . 3 10 Weapon 9 | . . . . . 7 2 Highest Loss Streak 11 | . . 1 . 2 10 11 To Critical Strikes 2 | . . . . . . 2 Average Backups 17 | 4 12 18 18 17 12 19 Power . | . 1 1 . . . 1 Propulsion 3 | 2 2 . . . . 5 Utility 5 | . 2 4 5 5 3 6 Weapon 6 | . 5 11 11 9 6 5 Tool/Special . | . . . . . . . Unused Backups 54 | . 8 . 5 . 11 30 Power 3 | . . . . . . 3 Propulsion 11 | . 2 . . . 1 8 Utility 18 | . . . 2 . 4 12 Weapon 21 | . 6 . 3 . 6 6 Tool/Special 1 | . . . . . . 1 Average Slot Usage (%) 95 | . 100 93 94 95 94 96 Engine 4 | . 14 14 3 . 6 1 Core 4 | . . . 10 14 1 5 Treads 15 | . 28 1 . . 2 22 Leg 5 | . . . . . 10 6 Wheel 5 | . . 26 28 17 8 . Device 14 | . 14 8 8 14 17 14 Storage 9 | . 14 14 14 14 9 7 Hackware 3 | . . . . . 7 3 Protection 6 | . . . . . . 11 Energy Gun 6 | . 4 . . 25 24 . Energy Cannon 6 | . . . . . . 10 Ballistic Gun 5 | . 23 28 28 2 1 . Ballistic Cannon 5 | . . . . . . 9 Peak Build Rating 81 | 7 13 13 21 23 45 81 Average Rating 43 | 4 9 12 16 22 33 59 On Entrance 16 | . 7 13 12 21 23 38 Naked Turns . | . . . . . . . Heaviest Build 171 | 14 52 52 52 52 55 171 Greatest Support 112 | 40 40 26 26 26 60 112 Greatest Overweight (x) 17 | . 1 1 1 17 9 4 Average Overweight (x) . | . . 1 1 1 . . Largest Inventory Capacity 25 | 8 20 20 20 20 20 25 Average Capacity 19 | 7 16 20 20 20 15 22 Most Carried 25 | 8 19 20 20 20 20 25 Average Carried 18 | 4 12 18 19 19 14 21 Final Capacity 25 | 8 20 20 20 20 15 25 Final Carried 22 | 6 19 20 20 20 15 22 Class Distribution -------------------- 45% | Tank 25% | Mutant 14% | Scavenger-Skirmisher 9% | Scavenger-Tank Dominant Class ---------------- Mutant | -10/Materials Mutant | -10/Mines Mutant | -10/Exiles Mutant | -9/Mines Scavenger-Skirmisher | -8/Materials Tank | -7/Factory Resources | -11 -10 -10 -10 -9 -8 -7 ----------- Run | Yrd Mat Min Exi Min Mat Fac Matter Collected 3669 | 222 309 286 40 84 576 2152 Remotely . | . . . . . . . Salvage Created 7937 | 22 480 329 . 246 2395 4465 Parts 369 | 5 26 31 . 14 96 197 Haulers Intercepted 13 | . 1 . . . 5 7 Recyclers Shooed 4 | . 1 . . . 1 2 Parts Field Recycled . | . . . . . . . Retrieved Matter . | . . . . . . . Parts Self-Destructed . | . . . . . . . Prevented . | . . . . . . . Kills | -11 -10 -10 -10 -9 -8 -7 ------- Run | Yrd Mat Min Exi Min Mat Fac Combat Hostiles Destroyed 165 | . 7 11 . 6 33 108 Melee 1 | . . . . . . 1 Guns 52 | . 7 11 . 6 28 . Cannons 80 | . . . . . . 80 AOE 29 | . . . . . 2 27 Classes Destroyed 19 | 1 4 1 . . 9 4 Worker 6 | . . . . . 4 2 Builder 4 | . . . . . 2 2 Tunneler 1 | 1 . . . . . . Hauler 13 | . 1 . . . 5 7 Recycler 13 | . 1 2 . 1 5 4 Mechanic 2 | . . . . . 1 1 Operator 1 | . . . . . . 1 Watcher 7 | . 2 . . . 2 3 Swarmer 30 | . . 11 . 4 4 11 Cutter 1 | . . . . . 1 . Grunt 78 | . 7 . . 2 21 48 Brawler 8 | . . . . . . 8 Duelist 6 | . . . . . 1 5 Protector 3 | . . . . . . 3 Sentry 9 | . . . . . 2 7 Specialist 2 | . . . . . 2 . Hunter 17 | . . . . . 1 16 Programmer 10 | . . . . . . 10 Heavy 1 | . . . . . 1 . Best Kill Streak 30 | 1 3 4 . 5 6 30 Combat Bots Only 30 | . 3 3 . 4 4 30 Max Kills in Single Turn 4 | 1 1 2 . 1 2 4 Gunslinging 1 | . . 1 . . 1 . Exploded 4 | . . . . . 1 4 Melee 1 | . . . . . . 1 Uniques/NPCs Destroyed . | . . . . . . . Combat | -11 -10 -10 -10 -9 -8 -7 -------- Run | Yrd Mat Min Exi Min Mat Fac Hostile Shots Fired 1136 | . 38 75 . 37 192 794 Missed 351 | . 9 20 . 13 59 250 Hits 785 | . 29 55 . 24 133 544 Melee 14 | . . . . . 1 13 Projectile 771 | . 29 55 . 24 132 531 AOE 1 | . . . . . 1 . Critical Strikes 26 | . 2 2 . . 7 15 Damage Taken 9501 | . 403 420 . 221 2352 6105 Core 1338 | . 26 73 . 55 482 702 Absorbed by Shields 1552 | . . . . . . 1552 Redirected to Shielding 101 | . . . . . . 101 Ignored by Resistances 198 | . . . . . . 198 Core Remaining (%) 50 | 100 . . . 38 12 . Volleys Fired 380 | 2 35 41 . 12 115 175 Largest 3 | 2 2 2 . 2 3 3 Hottest 204 | 60 60 46 . 112 168 204 Shots Fired 1001 | 4 69 82 . 24 299 523 Gun 478 | 4 69 82 . 24 299 . Cannon 499 | . . . . . . 499 Launcher 24 | . . . . . . 24 Special . | . . . . . . . Kinetic 430 | 2 65 82 . 8 28 245 Thermal 537 | 2 4 . . 16 261 254 Explosive 24 | . . . . . . 24 Electromagnetic 10 | . . . . . 10 . Robot Hit Streak 28 | 2 9 6 . 5 14 28 Robot Miss Streak 8 | 2 4 8 . 3 5 5 Penetration Max . | . . . . . . . Secondary Targets 14 | . . 3 . 3 8 . Max Gunslinging Chain 1 | . . 1 . 1 1 . Autonomous 126 | . . . . . . 126 Shots Hit Robots 631 | 2 44 39 . 13 189 344 Core Hits 331 | 1 21 13 . 8 85 203 Critical Kills 2 | . 2 . . . . . Critical Parts Destroyed 1 | . . . . . 1 . Critical Strikes 36 | . 2 . . . 20 14 Burn 19 | . . . . . 19 . Destroy 3 | . 2 . . . 1 . Blast 14 | . . . . . . 14 Melee Attacks 2 | . . . . . . 2 Impact . | . . . . . . . Slashing 2 | . . . . . . 2 Piercing . | . . . . . . . Sneak Attacks . | . . . . . . . Combat Hostiles . | . . . . . . . Follow-up Attacks . | . . . . . . . Damage Inflicted 22926 | 22 564 596 . 245 3710 17789 Guns 4955 | 22 564 596 . 245 3528 . Cannons 13621 | . . . . . . 13621 Explosions 4350 | . . . . . 182 4168 Melee . | . . . . . . . Ramming . | . . . . . . . Kinetic 11880 | 10 530 596 . 92 365 10287 Thermal 6668 | 12 34 . . 153 3135 3334 Explosive 4168 | . . . . . . 4168 Electromagnetic 210 | . . . . . 210 . Impact . | . . . . . . . Slashing . | . . . . . . . Piercing . | . . . . . . . Highest Corruption 6 | . . . . . 2 6 Average Corruption 2 | . . . . . 2 2 Corruption Purged 1 | . . . . . . 1 Corruption Blocked . | . . . . . . . Effects 67 | . . . . . . 67 Message Errors 17 | . . . . . . 17 Matter Fused 15 | . . . . . . 15 Heat Flow Errors 9 | . . . . . . 9 Energy Discharges 5 | . . . . . . 5 Parts Rejected 1 | . . . . . . 1 Parts Fused 1 | . . . . . . 1 Data Loss (minor) 10 | . . . . . . 10 Data Loss (major) 4 | . . . . . . 4 Alerts 3 | . . . . . . 3 Weapon Failures 2 | . . . . . . 2 Overload Shots . | . . . . . . . Overflow Damage 1098 | . . . . . 16 1082 Projectiles 969 | . . . . . . 969 Explosions 129 | . . . . . 16 113 Melee . | . . . . . . . Knockbacks 70 | . . . . . . 70 Impact . | . . . . . . . Kinetic 64 | . . . . . . 64 Secondary 6 | . . . . . . 6 Self-Inflicted Damage 42 | . . . . . 29 13 Shots 2 | . . . . . 1 1 Rammed . | . . . . . . . Targets Rammed 1 | . . . . . . 1 Kicked . | . . . . . . . Crushed 1 | . . . . . . 1 Highest Temperature 386 | . 20 . . 120 310 386 Average Temperature 82 | . 5 . . 61 70 93 Received Heat Transfer 2716 | . 258 . . 51 909 1498 Effects 9 | . . . . . 1 8 Shutdowns 1 | . . . . . . 1 Energy Bleed 1 | . . . . . . 1 Interference 7 | . . . . . 1 6 Siege Activations . | . . . . . . . Martial Activations . | . . . . . . . Shielding Activations . | . . . . . . . Robots Disrupted . | . . . . . . . Combat Hostiles . | . . . . . . . Robots Corrupted . | . . . . . . . Combat Hostiles . | . . . . . . . Parts Fried . | . . . . . . . Impact Corruptions . | . . . . . . . Robots Melted 3 | . . . . . 3 . Combat Hostiles 3 | . . . . . 3 . Parts Melted 43 | . . . . 1 26 16 Heat Transferred 14151 | 25 75 . . 333 7983 5735 Parts Sabotaged . | . . . . . . . Parts Stolen . | . . . . . . . Parts Stripped . | . . . . . . . Power Chain Reactions 2 | . . . . . 2 . Alert | -11 -10 -10 -10 -9 -8 -7 ------- Run | Yrd Mat Min Exi Min Mat Fac Maximum Alert Level 5 | . . . . . 1 5 Low Security (%) 48 | 100 100 100 . 100 87 16 Level 1 14 | . . . . . 12 19 Level 2 20 | . . . . . . 34 Level 3 5 | . . . . . . 9 Level 4 4 | . . . . . . 7 Level 5 . | . . . . . . . High Security 7 | . . . . . . 12 Max Security . | . . . . . . . Peak Influence 2783 | . 74 116 . 75 290 2783 Initial 128 | . . 11 . . 5 128 Average 435 | . 21 43 . 26 79 706 Influence Increases 5252 | 5 227 270 . 145 1021 3584 Destroy 0b10 Robot/C 3240 | . 140 220 . 120 660 2100 Destroy 0b10 Robot/NC 250 | 5 20 10 . 5 95 115 Destroy Leader 698 | . 36 40 . 20 134 468 Successful Hack 19 | . 16 . . . 3 . Select Force Hacks 140 | . . . . . 30 110 Disable Machine 300 | . 15 . . . 45 240 Anti-Garrison Action 150 | . . . . . . 150 Destroy Structure 140 | . . . . . 9 131 Partial Spotted 30 | . . . . . 15 15 Lose Combat Pursuer 285 | . . . . . 30 255 Influence Decreases 2520 | 5 197 300 . 130 752 1136 Entered New Map 185 | . . 19 . . 10 156 Time Decay 1915 | 5 197 261 . 120 562 770 Lost Part 420 | . . 20 . 10 180 210 Squads Dispatched 54 | . 1 . . . 6 47 Investigation 7 | . 1 . . . 1 5 Extermination 8 | . . . . . . 8 Reinforcement 9 | . . . . . 5 4 Assault 30 | . . . . . . 30 Garrison . | . . . . . . . Intercept . | . . . . . . . Searches Triggered . | . . . . . . . Construction Impeded 2 | . . . . . 2 . Haulers Reinforced 2 | . . . . . . 2 Active Scanning Responses . | . . . . . . . Cargo Convoy Interrupts . | . . . . . . . Stealth | -11 -10 -10 -10 -9 -8 -7 --------- Run | Yrd Mat Min Exi Min Mat Fac Distress Signals 11 | . 2 . . . 4 5 Communications Jammed . | . . . . . . . Distress Signals . | . . . . . . . Times Spotted 262 | . 12 12 . 6 42 190 Peak Tracking Total 29 | . 4 3 . 4 5 29 Tactical Retreats 10 | . . . . . 1 9 Traps | -11 -10 -10 -10 -9 -8 -7 ------- Run | Yrd Mat Min Exi Min Mat Fac Traps Triggered 5 | . 1 . . . . 4 Indirectly . | . . . . . . . Trap Hack Attempts . | . . . . . . . Triggered . | . . . . . . . Disarmed . | . . . . . . . Reprogrammed . | . . . . . . . Reused . | . . . . . . . Traps Extracted . | . . . . . . . Installed . | . . . . . . . Triggered . | . . . . . . . Machines | -11 -10 -10 -10 -9 -8 -7 ---------- Run | Yrd Mat Min Exi Min Mat Fac Machines Disabled 21 | . 1 . . . 3 17 Max in Single Turn 2 | . 1 . . . 1 2 Garrison Access 2 | . . . . . . 2 Machines Repaired . | . . . . . . . Machines Dismantled 1 | . . . . . 1 . Machines Sabotaged . | . . . . . . . Overloaded Fab Kills . | . . . . . . . Hacking | -11 -10 -10 -10 -9 -8 -7 --------- Run | Yrd Mat Min Exi Min Mat Fac Machines Accessed 29 | . 5 1 2 . 4 17 Terminals 11 | . 4 1 . . 2 4 Fabricators 3 | . . . . . . 3 Repair Stations 2 | . . . . . 1 1 Recycling Units 6 | . 1 . . . 1 4 Scanalyzers 3 | . . . . . . 3 Garrison Access 2 | . . . . . . 2 Total Hacks 61 | . 14 3 2 . 10 32 Successful 31 | . 6 1 2 . 6 16 Failed 30 | . 8 2 . . 4 16 Catastrophic 4 | . . . . . . 4 Database Lockouts . | . . . . . . . Manual 32 | . 9 3 1 . 7 12 Terminals 28 | . 11 3 . . 6 8 Fabricators 6 | . . . . . . 6 Repair Stations 3 | . . . . . 2 1 Recycling Units 13 | . 3 . . . 2 8 Scanalyzers 5 | . . . . . . 5 Garrison Access 4 | . . . . . . 4 Terminal Hacks 4 | . . 1 2 . . 1 Record 1 | . . . 1 . . . Level Access Points 1 | . . . . . . 1 Zone Layout 1 | . . 1 . . . . Proto ID Catalog 1 | . . . 1 . . . Fabricator Hacks 3 | . . . . . . 3 Network Status 3 | . . . . . . 3 Repair Station Hacks 1 | . . . . . 1 . Refit 1 | . . . . . 1 . Recycling Unit Hacks 7 | . 1 . . . 1 5 Retrieve Components 7 | . 1 . . . 1 5 Scanalyzer . | . . . . . . . Garrison Access Hacks 1 | . . . . . . 1 Seal Access 1 | . . . . . . 1 Unauthorized Hacks 15 | . 5 . . . 4 6 Terminals 9 | . 5 . . . 3 1 Botnet 4 | . 2 . . . 1 1 Skim 5 | . 3 . . . 2 . Fabricators 1 | . . . . . . 1 Download 1 | . . . . . . 1 Repair Stations 1 | . . . . . . 1 Mechanics 1 | . . . . . . 1 Recycling Units 1 | . . . . . 1 . Tunnel 1 | . . . . . 1 . Scanalyzers 3 | . . . . . . 3 Extract 3 | . . . . . . 3 Garrison Access . | . . . . . . . Data Cores Recovered . | . . . . . . . Used . | . . . . . . . Hacking Detections 19 | . 4 1 . . 2 12 Full Trace Events 1 | . . . . . . 1 Feedback Events 1 | . . . . . . 1 Corruption 1 | . . . . . . 1 Feedback Blocked . | . . . . . . . Robot Schematics Acquired 1 | . . . . . . 1 Robots Built . | . . . . . . . Authchips . | . . . . . . . Time . | . . . . . . . Total Robot Build Rating . | . . . . . . . Part Schematics Acquired 21 | . . . . . . 21 Parts Built . | . . . . . . . Authchips . | . . . . . . . Time . | . . . . . . . Total Part Build Rating . | . . . . . . . Parts Repaired . | . . . . . . . Time . | . . . . . . . Parts Recycled . | . . . . . . . Recycled Matter . | . . . . . . . Retrieved Matter . | . . . . . . . Retrieved Components 33 | . . . . . 7 26 Parts Scanalyzed . | . . . . . . . Part Schematics Acquired . | . . . . . . . Parts Damaged . | . . . . . . . Bothacking | -11 -10 -10 -10 -9 -8 -7 ------------ Run | Yrd Mat Min Exi Min Mat Fac Used RIF Installer . | . . . . . . . Robots Hacked . | . . . . . . . Non-combat . | . . . . . . . Combat . | . . . . . . . Robot Hacks Applied . | . . . . . . . Relay Couplers Released 6 | . . . . . . 6 Machine Destruction 6 | . . . . . . 6 Fabnet Peak Effective % . | . . . . . . . Robots Rewired . | . . . . . . . Allies Hacked . | . . . . . . . Hacks Repelled . | . . . . . . . Allies | -11 -10 -10 -10 -9 -8 -7 -------- Run | Yrd Mat Min Exi Min Mat Fac Total Allies . | . . . . . . . Largest Group . | . . . . . . . Highest-Rated Group . | . . . . . . . Highest-Rated Ally . | . . . . . . . Total Orders . | . . . . . . . Ally Attacks . | . . . . . . . Total Damage . | . . . . . . . Kills . | . . . . . . . Allies Corrupted . | . . . . . . . Allies Melted . | . . . . . . . Intel | -11 -10 -10 -10 -9 -8 -7 ------- Run | Yrd Mat Min Exi Min Mat Fac Active Infowar (turns) 1259 | 14 862 383 . . . . Seismic 1259 | 14 862 383 . . . . Robot Analysis Total . | . . . . . . . Derelict Logs Recovered 1 | . . 1 . . . . Drone Launches . | . . . . . . . Drone Recoveries . | . . . . . . . Exploration | -11 -10 -10 -10 -9 -8 -7 ------------- Run | Yrd Mat Min Exi Min Mat Fac Turns Passed 10121 | 120 862 644 445 321 2074 5655 Spaces Moved 4543 | 69 346 448 412 165 789 2314 Core 17 | 14 . . . 2 1 . Treads 2188 | 55 346 . . . 77 1710 Legs 1012 | . . . . . 408 604 Wheels 1264 | . . 448 412 149 255 . Hover 40 | . . . . . 40 . Flight 22 | . . . . 14 8 . Fastest Speed 50 | 50 160 105 105 105 86 130 Average Speed 169 | 137 197 105 105 161 130 203 Slowest Speed 1000 | 160 240 105 105 1000 517 480 Overloaded Moves . | . . . . . . . Propulsion Burnouts . | . . . . . . . Robots Hopped . | . . . . . . . Potential Cave-ins . | . . . . . . . Cave-ins Triggered . | . . . . . . . Exploration Rate (%) 49 | 4 56 92 69 26 37 60 Regions Visited 6 Branch Regions 3 Pre-discovered Areas 3 | . . 1 1 . 1 . Known Exits Taken . | . . . . . . . Unknown Exits Taken 6 | 1 1 1 1 1 1 . Scrap Searched 3 | . . 2 . 1 . . Spaces Dug 8 | . . . . . . 8 Terrain Destroyed 138 | . . . . . 5 133 Melee 2 | . . . . . . 2 Projectile 25 | . . . . . 1 24 AOE 111 | . . . . . 4 107 Terrain Rammed . | . . . . . . . Walls Destroyed . | . . . . . . . Machines Disabled . | . . . . . . . Actions | -11 -10 -10 -10 -9 -8 -7 --------- Run | Yrd Mat Min Exi Min Mat Fac Total 6266 | 90 460 539 427 200 1602 2948 Wait 886 | . 36 36 . 14 567 233 Move 4537 | 68 345 447 411 164 788 2314 Hop . | . . . . . . . Pick Up 146 | 13 25 6 6 3 33 60 Fast Attach 45 | . . . . 2 17 26 Attach 55 | 7 1 1 2 2 18 24 Detach 3 | . . . . . . 3 Swap 61 | . 5 4 1 . 19 32 Drop 146 | . 13 4 7 3 41 78 Fire 380 | 2 35 41 . 12 115 175 Melee 2 | . . . . . . 2 Ram . | . . . . . . . Kick . | . . . . . . . Crush 1 | . . . . . . 1 Escape Stasis . | . . . . . . . Rewire . | . . . . . . . Trap . | . . . . . . . Miscellaneous 4 | . . . . . 4 . Route ------- -11/Scrapyard -10/Materials (discovered 2 exits: [*Mat] / *Min) -10/Mines (discovered 3 exits: [*Mat x2] / *Exi) -10/Exiles -9/Mines -8/Materials -7/Factory (discovered 4 exits: *Fac x4) History --------- Turn | Location | Event 10 | -11/Scrapyard | Discovered new exit (range 15) 121 | -11/Scrapyard | Entered Materials 300 | -10/Materials | Discovered new exit (range 9) 311 | -10/Materials | Build established: Mutant 792 | -10/Materials | Discovered new exit (range 8) 983 | -10/Materials | Entered Mines 1017 | -10/Mines | Discovered new exit (range 10) 1037 | -10/Mines | Met a Derelict bent on vengeance 1056 | -10/Mines | Learned Materials garrison access intel 1332 | -10/Mines | Learned location of Storage (-9) 1435 | -10/Mines | Discovered new exit (range 5) 1493 | -10/Mines | A weapon hastily lodged in a ceiling crevice suddenly fell to the ground 1623 | -10/Mines | Deemed a non-threat by the Exiles lab entrance 1623 | -10/Mines | Discovered new exit (range 5) 1627 | -10/Mines | Entered Exiles 1653 | -10/Exiles | Met 8R-AWN 1677 | -10/Exiles | Met EX-HEX 1747 | -10/Exiles | Met EX-DEC 1766 | -10/Exiles | Learned location of Zion (-6) 1835 | -10/Exiles | Met EX-BIN 1850 | -10/Exiles | Aligned with FarCom system 1851 | -10/Exiles | Given EX-Vault access code 1875 | -10/Exiles | Opened EX-Vault 1881 | -10/Exiles | Found Superbattery 1887 | -10/Exiles | Found Field Lobotomy Kit 1895 | -10/Exiles | Found AWS/Autocannon 1917 | -10/Exiles | Warned to stay clear of 0b10 Research branches 2059 | -10/Exiles | Discovered new exit (range 14) 2072 | -10/Exiles | Stole three prototypes: Superbattery, AWS/Autocannon, Field Lobotomy Kit 2072 | -10/Exiles | Entered Mines 2214 | -9/Mines | Discovered new exit (range 9) 2266 | -9/Mines | Core integrity fell below 50% 2393 | -9/Mines | Entered Materials 2393 | -8/Materials | Evolved 4 slots: Propulsion x1, Utility x2, Weapon x1 2394 | -8/Materials | Loaded intel: 1 garrison access location 2674 | -8/Materials | Lost 3 parts (2n1u) 2954 | -8/Materials | Build established: Scavenger-Skirmisher 4219 | -8/Materials | Core integrity fell below 50% 4247 | -8/Materials | Core integrity fell below 20% 4285 | -8/Materials | Lost 10 parts (1p3n1u5w) 4443 | -8/Materials | Discovered new exit (range 7) 4467 | -8/Materials | Entered Factory 4467 | -7/Factory | Evolved 2 slots: Propulsion x1, Utility x1 4469 | -7/Factory | FarCom data flow suspended 4792 | -7/Factory | Build established: Scavenger-Tank 5188 | -7/Factory | Allied Derelicts emerged from ambush trap array 5228 | -7/Factory | Identified exit to Factory 5731 | -7/Factory | Build established: Tank 8067 | -7/Factory | First assault squad dispatched 9361 | -7/Factory | Destroyed 11 combat bots 9435 | -7/Factory | High security lockdown imminent 9460 | -7/Factory | Destroyed 8 combat bots 9515 | -7/Factory | High security lockdown engaged 9952 | -7/Factory | Core integrity fell below 50% 10036 | -7/Factory | Lost 7 parts (1p3n3u) 10117 | -7/Factory | Core integrity fell below 20% 10122 | -7/Factory | Destroyed by H-55 Commando with Assault Rifle Last Messages --------------- 10118_ Slug penetrates H-55 Commando. 10118_ Med. Treads destroyed. 10120_ Enh. Nuclear Core destroyed. 10120_ P-60 Hacker resets I-36 Angel, system corruption cleaned. 10121_ C-30 ARC bursts open, deploying its payload. 10121_ P-60 Hacker unfolds itself. 10121_ I-36 Angel unfolds itself. 10121_ Slug penetrates Wall. 10121_ Dropped Huge Storage Unit. 10121_ C-30 ARC bursts open, deploying its payload. 10121_ G-50 Soldier unfolds itself. 10121_ G-47 Trooper unfolds itself. 10121_ B-48 Gladiator unfolds itself. 10121_ Dropped Mni. Assault Cannon. 10122_ Dropped Force Booster. 10122_ Penetrated by Slug. 10122_ Slug penetrates Earth. Map ----- +----------------------------------------------------+ | #### """ """ """ "??????????????????????????????? | | ???# """ """ ""?????????????????????????????????? | | ???# """ """ ""?????????????????????????????????? | | ???# ?????????????????????????????? | | ???# """ """ ""?????????????????????????????????? | | ???# """ """ "??????????????????????????????????? | | ???# """ """ ""?????????????????????????????????? | | ???# ?????????????????????????????? | | ???# """ """ ""?????????????????????????????????? | | #### """ """ """ ???????????????????????????????? | | # """ """ """ "???? ????????????????????????? | | # ?? ???????????????????? | | # "" "" """ "?" ?? ??????????????????? | | # "F "" """???" "" ? m???????????????? | | # """"" """ """ "" b ? ????????????????? | | + m gg ????????????????? | | # g ?????????????????? | | # ############# ###+#+#???????????? | | # # * % ^ ???????????? | | #### # # % %%# ????????????? | | ???# # # "?????????????? | | ???# # # ???????????????? | | ???# + # ?????????????????? | | ???# # """" """" ## ???????????????????? | | ???# # """" """" ## #????????????????????? | | #### # """" """" ## @! #????????????????????? | | # """" """???# ] #????????????????????? | | # """" """???#i #????????????????????? | | + """" "?????# #????????????????????? | | # ??# #????????????????????? | | #############?# ########+#???????????? | | ###+###########??????# #???????????? | | # #??????# *= #######?????? | | # """ """ """ ######## !% %[=% ?????? | | # """ """ """?+ hi [*%%% ?????? | | # """ """ """ ####### php =% ##+####????????? | | # #???###hhhh p # ?????????????? | | # + h[hi i #? "????????????? | | ##################### #m# ! #??"????????????? | | #??????????# #h h ???????????????? | | #??????????# # ??????????????? | | #????####??# # " ??????????????? | | +???? #??# #!%" ????????????????? | | #????# #??#!/%* ] #?????????????????? | | #????# ##?#%#% = #?????????????????? | | #????# #?# # #?????????????????? | | #????# #?# # ! #?????????????????? | | #????+ #?#=# #?????????????????? | | #????# #?#%##########?????????????????? | | #????# #?#[#??????????????????????????? | +----------------------------------------------------+ Best States ------------- Heat Dissipation 83 Coolant Potential 65 Energy Generation 17 Energy Capacity 1800 Matter Stores 300 Matter Capacity 300 Sight Range 16 Terrain Scan Density 10 Additional Mass Support 6 EM Shielding 2 Armor Coverage 525 Resistance: KI 20 Resistance: TH 10 Propulsion Shielding 66 Evasion (%) 63 Recoil Reduction 4 Offensive Hacking 10 Item Schematics ----------------- Huge Storage Unit | -7/Factory | Extracted Hvy. Particle Cannon | -7/Factory | Extracted Weapon Cycler | -7/Factory | Extracted Nuclear Core | -7/Factory | Extracted Imp. Salvage Targeting Computer | -7/Factory | Extracted Weight Redist. System | -7/Factory | Extracted Hacking Suite | -7/Factory | Extracted Gravmag System | -7/Factory | Extracted Imp. Targeting Computer | -7/Factory | Extracted Recalibrator | -7/Factory | Extracted Hcp. Matter Pod | -7/Factory | Extracted Adv. Assault Cannon | -7/Factory | Extracted Cld. Ion Engine | -7/Factory | Extracted Imp. EM Pulse Cannon | -7/Factory | Extracted Imp. Terrain Scanner | -7/Factory | Extracted Energy Filter | -7/Factory | Extracted Sml. Matter Pod | -7/Factory | Extracted Imp. Terrain Scan Processor | -7/Factory | Extracted Adv. ECM Suite | -7/Factory | Extracted Weapon Shielding | -7/Factory | Extracted Imp. Deuterium Engine | -7/Factory | Extracted Robot Schematics ------------------ R-06 Scavenger | -7/Factory | Downloaded Fabricated ------------ Nothing Repaired ---------- Nothing Alien Tech Used ----------------- None Achievements -------------- None Challenges ------------ None Game ------ Seed CountertargetingCoilThruster Manual? 0 Play Time 01:23:49 Cumulative 320.2 hours Start 2025.09.24 @ 06:39:44 End 2025.09.24 @ 09:39:16 Sessions 7 Manual Loads 0 Difficulty Rogue Special Mode None Game No. 436 Rogue 436 Adventurer 0 Explorer 0 Win Type - Total 10 Types 5/0/1/2/1/0/1/0/0/0 Lore% 86 Gallery% 82 Achievement% 67 Wizard Run 0 Options --------- Layout 1 ASCII 0 Keyboard 0 Movement Mouse Keybinds 0 Fullscreen 1 Font 24/Smallcaps Map View 50x40 Zoom Use 0% Tactical HUD 1 Map Filters NONE Filters NONE Steam 1 RUN: 0f7beac0-3295-4bf4-9f35-9fe32aa29f4a